fUST/lending_fUST_20250722
["ID","MTS","AMOUNT","RATE_DAILY","PERIOD"]
[374036739,1753188656926,-460.0,0.00021409,2]
[374036741,1753188656936,-460.0,0.0002141,2]
[374036743,1753188656945,-638.88,0.0002141,2]
[374036745,1753188656954,-460.0,0.00021411,2]
[374036747,1753188656964,-1226.54,0.00021411,2]
[374036749,1753188656976,-460.0,0.00021411,2]
[374036751,1753188656986,-1347.59110799,0.00021486,5]
[374036753,1753188656995,-223.0315306,0.00021573,2]
[374036755,1753188657005,-565.13,0.0002158,2]
[374036757,1753188657014,-505.2,0.0002158,2]
[374036759,1753188657024,-460.0,0.0002158,2]
[374036761,1753188657033,-389.9,0.0002158,2]
[374036763,1753188657044,-460.0,0.0002158,2]
[374036765,1753188657053,-460.0,0.00021581,2]
[374036767,1753188657063,-1103.13,0.00021582,2]
[374036769,1753188657072,-490.09,0.00021582,2]
[374036771,1753188657082,-460.0,0.00021582,2]
[374036773,1753188657091,-460.0,0.00021582,2]
[374036775,1753188657100,-1181.98,0.00021582,2]
[374036777,1753188657110,-465.7,0.00021682,2]
[374036779,1753188657120,-913.28,0.00021682,2]
[374036781,1753188657129,-7033.93,0.00021683,2]
[374036783,1753188657140,-460.0,0.00021683,2]
[374036785,1753188657149,-460.0,0.00021684,2]
[374036787,1753188657159,-638.88,0.00021684,2]
[374036789,1753188657168,-460.0,0.00021685,2]
[374036791,1753188657177,-1226.54,0.00021685,2]
[374036793,1753188657187,-460.0,0.00021685,2]
[374036795,1753188657196,-1347.59110799,0.00021762,5]
[374036796,1753188657206,-565.13,0.00021854,2]
[374036799,1753188657216,-505.2,0.00021854,2]
[374036800,1753188657226,-460.0,0.00021854,2]
[374036802,1753188657236,-460.0,0.00021854,2]
[374036804,1753188657246,-1103.13,0.00021856,2]
[374036807,1753188657256,-385.22728944,0.00021856,2]
[374036820,1753188657376,-104.86271056,0.00021856,2]
[374036822,1753188657387,-150.69,0.00021856,2]
[374036824,1753188657396,-460.0,0.00021856,2]
[374036826,1753188657405,-1181.98,0.00021856,2]
[374036828,1753188657415,-465.7,0.00021956,2]
[374036831,1753188657425,-913.28,0.00021956,2]
[374036833,1753188657434,-7033.93,0.00021957,2]
[374036835,1753188657443,-460.0,0.00021957,2]
[374036837,1753188657452,-460.0,0.00021958,2]
[374036839,1753188657462,-638.88,0.00021958,2]
[374036841,1753188657471,-460.0,0.00021959,2]
[374036843,1753188657480,-1226.54,0.00021959,2]
[374036845,1753188657489,-460.0,0.00021959,2]
[374036847,1753188657498,-408.00404853,0.00022,7]
[374037041,1753188659390,-460.8137422,0.00016921,2]
[374037043,1753188659400,-500.0,0.00016921,2]
[374037045,1753188659409,-380.83292651,0.00016921,2]
[374037048,1753188659428,-460.0,0.00016921,2]
[374037050,1753188659438,-119.16707349,0.00016921,2]
[374037052,1753188659447,-512.34684274,0.00016921,2]
[374037054,1753188659458,-500.0,0.00016921,2]
[374037056,1753188659467,-500.0,0.00016921,2]
[374037058,1753188659476,-500.0,0.00016921,2]
[374037060,1753188659486,-500.0,0.00016921,2]
[374037062,1753188659495,-500.0,0.00016921,2]
[374037064,1753188659504,-650.8504974,0.00016921,2]
[374037066,1753188659513,-500.0,0.00016921,2]
[374037068,1753188659522,-500.0,0.00016921,2]
[374037070,1753188659531,-500.0,0.00016921,2]
[374037072,1753188659540,-500.0,0.00016921,2]
[374037073,1753188659550,-500.0,0.00016921,2]
[374037075,1753188659560,-500.0,0.00016921,2]
[374037077,1753188659569,-500.0,0.00016921,2]
[374037079,1753188659578,-500.0,0.00016921,2]
[374037081,1753188659587,-500.0,0.00016921,2]
[374037083,1753188659596,-500.0,0.00016921,2]
[374037085,1753188659606,-500.0,0.00016921,2]
[374037087,1753188659615,-500.0,0.00016921,2]
[374037089,1753188659628,-300.0,0.00016921,2]
[374037091,1753188659637,-621.25057361,0.00016921,2]
[374037093,1753188659646,-373.00305966,0.00016921,2]
[374037095,1753188659655,-500.0,0.00016921,2]
[374037097,1753188659665,-500.0,0.00016921,2]
[374037099,1753188659674,-500.0,0.00016921,2]
[374037101,1753188659683,-500.0,0.00016921,2]
[374037103,1753188659692,-500.0,0.00016921,2]
[374037104,1753188659701,-500.0,0.00016921,2]
[374037106,1753188659710,-500.0,0.00016921,2]
[374037108,1753188659720,-500.0,0.00016921,2]
[374037110,1753188659729,-500.0,0.00016921,2]
[374037112,1753188659740,-500.0,0.00016921,2]
[374037114,1753188659749,-500.0,0.00016921,2]
[374037116,1753188659758,-500.0,0.00016921,2]
[374037118,1753188659767,-306.90551224,0.00016921,2]
[374037120,1753188659776,-500.0,0.00016921,2]
[374037122,1753188659785,-472.49165954,0.00016921,2]
[374037124,1753188659794,-500.0,0.00016921,2]
[374037126,1753188659803,-500.0,0.00016921,2]
[374037128,1753188659812,-570.17982109,0.00016921,2]
[374037130,1753188659821,-500.0,0.00016921,2]
[374037132,1753188659831,-500.0,0.00016921,2]
[374037134,1753188659840,-500.0,0.00016921,2]
[374037136,1753188659849,-500.0,0.00016921,2]
[374037138,1753188659859,-500.0,0.00016921,2]
[374037140,1753188659868,-500.0,0.00016921,2]
[374037141,1753188659878,-500.0,0.00016921,2]
[374037151,1753188659957,-500.0,0.00016921,2]
[374037153,1753188659969,-500.0,0.00016921,2]
[374037154,1753188659979,-500.0,0.00016921,2]
[374037156,1753188659989,-500.0,0.00016921,2]
[374037158,1753188659999,-500.0,0.00016921,2]
[374037160,1753188660008,-500.0,0.00016921,2]
[374037163,1753188660019,-500.0,0.00016921,2]
[374037165,1753188660029,-500.0,0.00016921,2]
[374037166,1753188660040,-500.0,0.00016921,2]
[374037168,1753188660050,-460.0,0.00016922,2]
[374037170,1753188660060,-460.0,0.00017196,2]
[374037172,1753188660070,-460.0,0.0001747,2]
[374037174,1753188660080,-460.0,0.00017744,2]
[374037176,1753188660090,-460.0,0.00019116,2]
[374037178,1753188660100,-460.0,0.0001939,2]
[374037180,1753188660110,-460.0,0.00019664,2]
[374037182,1753188660121,-460.0,0.00019938,2]
[374037184,1753188660130,-460.0,0.00020212,2]
[374037186,1753188660140,-460.0,0.00020486,2]
[374037188,1753188660149,-460.0,0.0002076,2]
[374037190,1753188660159,-460.0,0.00021034,2]
[374037192,1753188660168,-3040.80595147,0.00022,7]
[374037194,1753188660178,-844.67,0.00022,7]
[374037196,1753188660188,-413.17,0.00022,7]
[374037198,1753188660198,-15698.29,0.00022,2]
[374037200,1753188660208,-1347.59110799,0.00022038,6]
[374037201,1753188660218,-565.13,0.00022128,2]
[374037203,1753188660228,-505.2,0.00022128,2]
[374037205,1753188660237,-460.0,0.00022128,2]
[374037207,1753188660247,-460.0,0.00022128,2]
[374037209,1753188660257,-1103.13,0.0002213,2]
[374037211,1753188660266,-490.09,0.0002213,2]
[374037213,1753188660275,-460.0,0.0002213,2]
[374037215,1753188660285,-1181.98,0.0002213,2]
[374037217,1753188660295,-465.7,0.0002223,2]
[374037219,1753188660303,-913.28,0.0002223,2]
[374037221,1753188660313,-7033.93,0.00022231,2]
[374037223,1753188660323,-460.0,0.00022231,2]
[374037225,1753188660332,-460.0,0.00022232,2]
[374037227,1753188660342,-638.88,0.00022232,2]
[374037228,1753188660351,-460.0,0.00022233,2]
[374037230,1753188660361,-1226.54,0.00022233,2]
[374037232,1753188660370,-460.0,0.00022233,2]
[374037234,1753188660380,-1347.59110799,0.00022314,7]
[374037236,1753188660389,-565.13,0.00022402,2]
[374037238,1753188660399,-505.2,0.00022402,2]
[374037240,1753188660408,-460.0,0.00022402,2]
[374037242,1753188660418,-460.0,0.00022402,2]
[374037244,1753188660427,-1103.13,0.00022404,2]
[374037246,1753188660437,-490.09,0.00022404,2]
[374037248,1753188660446,-460.0,0.00022404,2]
[374037250,1753188660456,-1181.98,0.00022404,2]
[374037252,1753188660466,-1943.85,0.00022465,2]
[374037254,1753188660476,-465.7,0.00022504,2]
[374037256,1753188660485,-913.28,0.00022504,2]
[374037258,1753188660495,-7033.93,0.00022505,2]
[374037260,1753188660505,-460.0,0.00022505,2]
[374037261,1753188660514,-460.0,0.00022506,2]
[374037263,1753188660524,-638.88,0.00022506,2]
[374037265,1753188660535,-460.0,0.00022507,2]
[374037267,1753188660545,-1226.54,0.00022507,2]
[374037269,1753188660555,-460.0,0.00022507,2]
[374037271,1753188660565,-1347.59110799,0.0002259,7]
[374037273,1753188660574,-565.13,0.00022676,2]
[374037275,1753188660584,-505.2,0.00022676,2]
[374037277,1753188660593,-289.19,0.00022676,2]
[374037279,1753188660602,-574.0542152,0.00022676,2]
[374037281,1753188660611,-1103.13,0.00022678,2]
[374037282,1753188660621,-490.09,0.00022678,2]
[374037284,1753188660630,-512.44,0.00022678,2]
[374037285,1753188660640,-1181.98,0.00022678,2]
[374037286,1753188660650,-465.7,0.00022778,2]
[374037287,1753188660659,-913.28,0.00022778,2]
[374037288,1753188660668,-7033.93,0.00022779,2]
[374037289,1753188660677,-319.46212274,0.00022779,2]
[374037290,1753188660686,-371.14,0.0002278,2]
[374037291,1753188660695,-638.88,0.0002278,2]
[374037292,1753188660704,-241.22,0.00022781,2]
[374037293,1753188660714,-1226.54,0.00022781,2]
[374037294,1753188660723,-573.41,0.00022781,2]
[374037295,1753188660732,-1347.59110799,0.00022866,8]
[374037296,1753188660741,-231.28369723,0.00022942,2]
[374037297,1753188660751,-565.13,0.0002295,2]
[374037298,1753188660761,-505.2,0.0002295,2]
[374037299,1753188660770,-1103.13,0.00022952,2]
[374037300,1753188660780,-490.09,0.00022952,2]
[374037301,1753188660789,-1181.98,0.00022952,2]
[374037302,1753188660799,-160.0,0.00023,2]
[374037303,1753188660808,-465.7,0.00023052,2]
[374037304,1753188660817,-913.28,0.00023052,2]
[374037305,1753188660827,-7033.93,0.00023053,2]
[374037306,1753188660836,-638.88,0.00023054,2]
[374037307,1753188660846,-1226.54,0.00023055,2]
[374037309,1753188660855,-999.02,0.000231,2]
[374037310,1753188660864,-1347.59110799,0.00023141,8]
[374037312,1753188660875,-565.29,0.00023224,2]
[374037314,1753188660884,-505.22,0.00023224,2]
[374037316,1753188660894,-1103.32002085,0.00023226,2]
[374037318,1753188660903,-490.21388677,0.00023226,2]
[374037320,1753188660912,-1182.21033596,0.00023226,2]
[374037322,1753188660921,-465.76,0.00023326,2]
[374037324,1753188660930,-913.36,0.00023326,2]
[374037326,1753188660939,-7034.09,0.00023327,2]
[374037328,1753188660948,-638.99,0.00023328,2]
[374037330,1753188660957,-1226.54,0.00023329,2]
[374037332,1753188660967,-1347.59110799,0.00023417,9]
[374037334,1753188660980,-1226.67,0.00023603,2]
[374037336,1753188660989,-1347.59110799,0.00023693,9]
[374037338,1753188660998,-177.276587,0.00023744,2]
[374037340,1753188661007,-947.340598,0.000239,2]
[374037342,1753188661018,-1347.59110799,0.00023969,10]
[374037344,1753188661028,-2157.0,0.00024178,2]
[374037345,1753188661038,-407.0,0.00024178,2]
[374037347,1753188661049,-1347.59110799,0.00024245,10]
[374037349,1753188661058,-15698.29,0.000243,2]
[374037351,1753188661068,-239.84119403,0.00024311,2]
[374037354,1753188661078,-1347.59110799,0.00024521,11]
[374037356,1753188661087,-1347.59110799,0.00024797,11]
[374037357,1753188661097,-174.614708,0.00024814,8]
[374037359,1753188661106,-1747.3941052,0.0002486,2]
[374037361,1753188661115,-388999.010655,0.000249,2]
[374037364,1753188661126,-2000.0,0.00025,2]
[374037366,1753188661135,-844.67,0.00025,7]
[374037367,1753188661145,-413.17,0.00025,7]
[374037369,1753188661154,-1347.59110799,0.00025072,12]
[374037371,1753188661164,-168.0,0.00025137,2]
[374037373,1753188661173,-1943.85,0.00025205,4]
[374037375,1753188661182,-992.61758749,0.0002522,2]
[374037377,1753188661192,-151.0,0.0002528,20]
[374037379,1753188661202,-437.0,0.0002528,20]
[374037381,1753188661211,-151.0,0.0002528,20]
[374037384,1753188661221,-151.0,0.0002528,20]
[374037385,1753188661231,-500.0,0.0002528,20]
[374037387,1753188661240,-425.0,0.0002528,2]
[374037389,1753188661249,-500.0,0.0002528,14]
[374037391,1753188661258,-500.0,0.0002528,14]
[374037393,1753188661268,-151.0,0.0002528,20]
[374037395,1753188661277,-151.0,0.0002528,20]
[374037397,1753188661286,-151.0,0.0002528,20]
[374037399,1753188661295,-151.0,0.00025289,7]
[374037401,1753188661305,-151.0,0.00025289,7]
[374037403,1753188661314,-151.0,0.00025289,7]
[374037405,1753188661323,-151.0,0.00025289,7]
[374037407,1753188661332,-151.0,0.00025289,7]
[374037409,1753188661341,-151.0,0.00025289,7]
[374037411,1753188661351,-151.0,0.00025289,7]
[374037413,1753188661360,-151.0,0.00025289,7]
[374037415,1753188661371,-151.0,0.00025289,7]
[374037417,1753188661381,-151.0,0.00025289,7]
[374037419,1753188661390,-151.0,0.00025289,7]
[374037421,1753188661399,-153.781926,0.00025289,7]
[374037423,1753188661408,-2000.0,0.000253,2]
[374037425,1753188661417,-215.80012421,0.000253,3]
[374037427,1753188661426,-215.80012421,0.000253,7]
[374037429,1753188661435,-160.0,0.000253,3]
[374037430,1753188661444,-160.0,0.000253,7]
[374037432,1753188661454,-160.0,0.000253,3]
[374037435,1753188661463,-160.0,0.000253,3]
[374037436,1753188661476,-214.6393183,0.000253,3]
[374037438,1753188661493,-160.0,0.000253,7]
[374037440,1753188661502,-476.60259688,0.000253,3]
[374037442,1753188661512,-231.06963584,0.000253,3]
[374037444,1753188661521,-231.06963584,0.000253,7]
[374037446,1753188661530,-839.90542673,0.000253,3]
[374037448,1753188661540,-151.0,0.00025319,7]
[374037450,1753188661549,-151.0,0.00025319,7]
[374037452,1753188661558,-178.154916,0.00025319,7]
[374037454,1753188661567,-151.0,0.00025319,7]
[374037456,1753188661577,-151.0,0.00025319,7]
[374037458,1753188661586,-151.0,0.00025319,7]
[374037460,1753188661596,-157.611,0.0002532,2]
[374037462,1753188661605,-160.0,0.0002532,7]
[374037464,1753188661614,-194.376138,0.0002532,7]
[374037466,1753188661625,-194.376138,0.0002532,7]
[374037476,1753188661701,-194.376138,0.0002532,7]
[374037478,1753188661717,-194.376138,0.0002532,7]
[374037480,1753188661726,-194.376138,0.0002532,7]
[374037482,1753188661736,-194.376138,0.0002532,7]
[374037484,1753188661745,-194.376138,0.0002532,7]
[374037486,1753188661754,-194.376138,0.0002532,7]
[374037488,1753188661763,-194.376138,0.0002532,7]
[374037490,1753188661772,-194.376138,0.0002532,7]
[374037491,1753188661781,-194.376138,0.0002532,7]
[374037493,1753188661791,-194.376138,0.0002532,7]
[374037495,1753188661801,-194.376138,0.0002532,7]
[374037497,1753188661810,-1889.46446551,0.00025321,2]
[374037500,1753188661820,-151.0,0.00025321,7]
[374037502,1753188661830,-500.0,0.00025321,2]
[374037503,1753188661839,-1137.75,0.00025324,3]
[374037505,1753188661848,-184.38394245,0.00025325,2]
[374037507,1753188661857,-4761678.28556709,0.00025326,20]
[374037509,1753188661867,-3040.38442445,0.00025326,2]
[374037511,1753188661878,-1604882.77913269,0.00025326,20]
[374037513,1753188661887,-1341105.60958719,0.00025326,20]
[374037516,1753188661903,-15402.56602925,0.00025326,20]
[374043463,1753188723715,240.05972339,0.00016414,2]
[374044158,1753189007737,6207.5575396,0.00016076,2]
[374044161,1753189201771,2905.87423425,0.000246,60]
[374044165,1753189496112,159.659643,0.00013699,2]
[374044167,1753189505517,1680.08168427,0.0001652,2]
[374044169,1753189555168,639.761,0.0002465,60]
[374044745,1753189838123,-493.86,0.00016911,3]
[374044747,1753189838133,-658.46,0.00016912,3]
[374044749,1753189838143,-329.23,0.00016912,3]
[374044751,1753189838153,-164.62,0.00016912,3]
[374044753,1753189838162,-529.0,0.00016917,2]
[374044755,1753189838172,-300.0,0.00016917,2]
[374044757,1753189838181,-300.0,0.00016917,2]
[374044759,1753189838191,-1200.0,0.00016917,2]
[374044761,1753189838200,-460.0,0.00016918,2]
[374044763,1753189838209,-460.0,0.00016918,2]
[374044765,1753189838220,-463.06496711,0.00016918,2]
[374044767,1753189838229,-460.0,0.00016918,2]
[374044769,1753189838238,-460.0,0.00016918,2]
[374044771,1753189838248,-460.0,0.00016918,2]
[374044773,1753189838258,-289.32815289,0.00016918,2]
[374044777,1753189838288,-170.67184711,0.00016918,2]
[374044779,1753189838298,-460.0,0.00016918,2]
[374044781,1753189838308,-460.0,0.00016918,2]
[374044783,1753189838317,-380.33714347,0.00016918,2]
[374044785,1753189838327,-460.0,0.00016918,2]
[374044787,1753189838337,-460.0,0.00016918,2]
[374044789,1753189838347,-460.0,0.00016918,2]
[374044791,1753189838357,-596.02,0.00016918,2]
[374044793,1753189838368,-460.0,0.00016918,2]
[374044795,1753189838378,-460.0,0.00016918,2]
[374044797,1753189838388,-321.29593264,0.00016918,2]
[374044799,1753189838398,-596.29907845,0.00016918,2]
[374044801,1753189838408,-460.0,0.00016918,2]
[374044803,1753189838417,-460.0,0.00016918,2]
[374044805,1753189838428,-460.0,0.00016918,2]
[374044807,1753189838438,-19857.93555702,0.00016918,2]
[374044809,1753189838448,-460.0,0.00016919,2]
[374044811,1753189838457,-460.0,0.00016919,2]
[374044813,1753189838466,-460.0,0.00016919,2]
[374044815,1753189838475,-460.0,0.00016919,2]
[374044817,1753189838485,-460.0,0.00016919,2]
[374044819,1753189838494,-460.0,0.00016919,2]
[374044821,1753189838504,-475.94306714,0.00016919,2]
[374044823,1753189838515,-460.0,0.00016919,2]
[374044825,1753189838524,-460.0,0.00016919,2]
[374044827,1753189838533,-464.3276136,0.00016919,2]
[374044829,1753189838543,-460.0,0.00016919,2]
[374044831,1753189838552,-460.0,0.00016919,2]
[374044833,1753189838563,-460.0,0.00016919,2]
[374044835,1753189838572,-460.0,0.00016919,2]
[374044837,1753189838582,-460.0,0.00016919,2]
[374044839,1753189838591,-460.0,0.00016919,2]
[374044841,1753189838601,-460.0,0.00016919,2]
[374044843,1753189838610,-460.0,0.00016919,2]
[374044845,1753189838622,-1102.72,0.00016919,2]
[374044847,1753189838632,-460.0,0.00016919,2]
[374044849,1753189838641,-460.0,0.00016919,2]
[374044851,1753189838651,-235.69450818,0.00016919,2]
[374044853,1753189838660,-385.83240662,0.00016919,2]
[374044855,1753189838670,-500.0,0.00016919,2]
[374044857,1753189838679,-500.0,0.00016919,2]
[374044859,1753189838688,-500.0,0.00016919,2]
[374044861,1753189838697,-500.0,0.00016919,2]
[374044863,1753189838707,-500.0,0.00016919,2]
[374044865,1753189838716,-407.01798211,0.00016919,2]
[374044867,1753189838726,-500.0,0.00016919,2]
[374044869,1753189838735,-460.0,0.00016919,2]
[374044871,1753189838745,-500.0,0.00016919,2]
[374044873,1753189838754,-422.98950136,0.00016919,2]
[374044875,1753189838764,-200.0,0.00016919,2]
[374044877,1753189838773,-718.71,0.00016919,2]
[374044879,1753189838783,-460.0,0.00016919,2]
[374044881,1753189838792,-460.0,0.00016919,2]
[374044883,1753189838801,-460.0,0.00016919,2]
[374044885,1753189838811,-460.0,0.00016919,2]
[374044887,1753189838820,-498.39,0.00016919,2]
[374044889,1753189838829,-460.0,0.00016919,2]
[374044891,1753189838838,-460.0,0.00016919,2]
[374044893,1753189838848,-460.0,0.00016919,2]
[374044895,1753189838857,-460.0,0.00016919,2]
[374044897,1753189838866,-460.0,0.00016919,2]
[374044899,1753189838876,-460.0,0.00016919,2]
[374044901,1753189838886,-460.0,0.00016919,2]
[374044903,1753189838895,-460.0,0.00016919,2]
[374044905,1753189838904,-460.0,0.00016919,2]
[374044907,1753189838913,-460.0,0.00016919,2]
[374044910,1753189838929,-463.30214796,0.00016919,2]
[374044912,1753189838943,-460.0,0.00016919,2]
[374044914,1753189838952,-616.72,0.00016919,2]
[374044916,1753189838962,-460.0,0.00016919,2]
[374044918,1753189838972,-460.0,0.00016919,2]
[374044920,1753189838981,-460.0,0.00016919,2]
[374044923,1753189838991,-460.0,0.00016919,2]
[374044924,1753189839000,-460.0,0.00016919,2]
[374044940,1753189839172,-460.0,0.00016919,2]
[374044941,1753189839182,-460.0,0.00016919,2]
[374044942,1753189839192,-540.0,0.00016919,2]
[374044944,1753189839201,-460.0,0.00016919,2]
[374044946,1753189839211,-460.0,0.00016919,2]
[374044948,1753189839221,-460.0,0.00016919,2]
[374044950,1753189839231,-460.0,0.00016919,2]
[374044952,1753189839241,-460.0,0.0001692,2]
[374044954,1753189839251,-460.0,0.0001692,2]
[374044956,1753189839260,-460.0,0.0001692,2]
[374044958,1753189839270,-460.0,0.0001692,2]
[374044960,1753189839279,-460.0,0.0001692,2]
[374044962,1753189839288,-473.55043024,0.0001692,2]
[374044964,1753189839298,-460.0,0.0001692,2]
[374044966,1753189839308,-454.47405582,0.0001692,2]
[374044968,1753189839317,-465.84937607,0.0001692,2]
[374044970,1753189839327,-513.29131247,0.0001692,2]
[374044972,1753189839337,-460.0,0.0001692,2]
[374044974,1753189839348,-460.0,0.0001692,2]
[374044976,1753189839359,-460.0,0.0001692,2]
[374044978,1753189839370,-460.0,0.0001692,2]
[374044980,1753189839379,-460.0,0.0001692,2]
[374044982,1753189839390,-460.0,0.0001692,2]
[374044984,1753189839400,-465.3568923,0.0001692,2]
[374044986,1753189839410,-460.0,0.0001692,2]
[374044988,1753189839420,-460.0,0.0001692,2]
[374044990,1753189839430,-460.0,0.0001692,2]
[374044992,1753189839440,-460.0,0.0001692,2]
[374044994,1753189839450,-460.0,0.0001692,2]
[374044996,1753189839459,-460.0,0.0001692,2]
[374044998,1753189839469,-460.0,0.0001692,2]
[374045000,1753189839479,-460.0,0.0001692,2]
[374045002,1753189839489,-460.0,0.0001692,2]
[374045004,1753189839498,-460.0,0.0001692,2]
[374045006,1753189839508,-460.0,0.0001692,2]
[374045008,1753189839519,-460.0,0.0001692,2]
[374045010,1753189839528,-460.0,0.0001692,2]
[374045012,1753189839538,-460.0,0.0001692,2]
[374045014,1753189839548,-460.0,0.0001692,2]
[374045016,1753189839558,-460.0,0.0001692,2]
[374045018,1753189839567,-460.0,0.0001692,2]
[374045020,1753189839577,-460.0,0.0001692,2]
[374045022,1753189839587,-460.0,0.0001692,2]
[374045024,1753189839597,-151.42606195,0.0001692,2]
[374045026,1753189839606,-460.0,0.0001692,2]
[374045028,1753189839618,-460.0,0.0001692,2]
[374045030,1753189839628,-225.48440026,0.0001692,2]
[374045032,1753189839638,-460.0,0.0001692,2]
[374045034,1753189839648,-460.0,0.0001692,2]
[374045036,1753189839657,-455.24095248,0.0001692,2]
[374045038,1753189839667,-460.0,0.0001692,2]
[374045041,1753189839676,-460.0,0.0001692,2]
[374045044,1753189839686,-460.0,0.0001692,2]
[374045047,1753189839695,-460.0,0.0001692,2]
[374045051,1753189839705,-460.0,0.0001692,2]
[374045055,1753189839714,-397.25782767,0.0001692,2]
[374045059,1753189839724,-460.0,0.0001692,2]
[374045061,1753189839733,-460.0,0.0001692,2]
[374045064,1753189839743,-460.0,0.0001692,2]
[374045067,1753189839752,-460.0,0.0001692,2]
[374045070,1753189839762,-460.0,0.0001692,2]
[374045072,1753189839771,-460.0,0.0001692,2]
[374045074,1753189839781,-460.0,0.0001692,2]
[374045076,1753189839790,-460.0,0.0001692,2]
[374045078,1753189839799,-460.0,0.0001692,2]
[374045080,1753189839809,-460.0,0.0001692,2]
[374045082,1753189839818,-462.63314233,0.0001692,2]
[374045084,1753189839828,-460.0,0.0001692,2]
[374045086,1753189839837,-460.0,0.0001692,2]
[374045088,1753189839847,-460.0,0.0001692,2]
[374045090,1753189839856,-328.59835396,0.0001692,2]
[374045092,1753189839867,-460.0,0.0001692,2]
[374045095,1753189839877,-460.0,0.0001692,2]
[374045096,1753189839887,-460.0,0.0001692,2]
[374045099,1753189839896,-464.07857501,0.0001692,2]
[374045100,1753189839906,-460.0,0.0001692,2]
[374045103,1753189839915,-460.0,0.0001692,2]
[374045104,1753189839924,-460.0,0.0001692,2]
[374045106,1753189839935,-460.0,0.0001692,2]
[374045109,1753189839945,-460.0,0.0001692,2]
[374045111,1753189839954,-475.97100343,0.0001692,2]
[374045113,1753189839968,-460.0,0.0001692,2]
[374045115,1753189839977,-460.0,0.0001692,2]
[374045117,1753189839987,-460.0,0.0001692,2]
[374045119,1753189839998,-460.0,0.0001692,2]
[374045121,1753189840007,-460.0,0.0001692,2]
[374045123,1753189840017,-460.0,0.0001692,2]
[374045125,1753189840027,-460.0,0.0001692,2]
[374045127,1753189840037,-460.0,0.0001692,2]
[374045129,1753189840046,-460.0,0.0001692,2]
[374045131,1753189840056,-460.0,0.0001692,2]
[374045133,1753189840066,-887.83,0.0001692,2]
[374045135,1753189840076,-460.0,0.0001692,2]
[374045137,1753189840087,-460.0,0.0001692,2]
[374045139,1753189840096,-460.0,0.0001692,2]
[374045142,1753189840106,-466.74883979,0.0001692,2]
[374045144,1753189840117,-461.18157853,0.0001692,2]
[374045146,1753189840126,-460.0,0.0001692,2]
[374045148,1753189840136,-460.0,0.0001692,2]
[374045150,1753189840146,-460.0,0.0001692,2]
[374045152,1753189840155,-460.0,0.0001692,2]
[374045154,1753189840165,-460.0,0.0001692,2]
[374045156,1753189840174,-460.0,0.0001692,2]
[374045158,1753189840184,-460.0,0.0001692,2]
[374045160,1753189840194,-460.0,0.0001692,2]
[374045162,1753189840203,-460.0,0.0001692,2]
[374045164,1753189840213,-460.0,0.0001692,2]
[374045166,1753189840222,-463.66492441,0.0001692,2]
[374045168,1753189840232,-259.64484049,0.0001692,2]